{"text_format":"1","workbook":"xlsx","n_sheets":2,"sheets":["Исходник","Результат"],"not_rendered":{"charts":0,"images":0,"macros":1,"external_links":0,"defined_names":1,"comments":0,"pivot_tables":0},"unopened":[],"bounds":{"document_bytes":16777216,"sheet_cells":100000,"rows_first":2000,"rows_last":500,"rows_between":2000,"halvings":0,"cell_chars":16384,"cell_head_chars":4096},"cells_cut":0,"cells_raw":0,"read":"whole","date_system":"1900"}

{"sheet":"Исходник","index":0,"n_rows":38,"n_cols":23,"rows_kept":38,"cut":false,"hidden":false,"merged":[]}
["Куратор","Фирма","Город назначения","№ Бланк-заказа","Клиент","Юр. лицо","К оплате (план)","К оплате (план) по прайс-листу","Начало размещения","Окончание размещения","На срок","К оплате(план)/срок","К оплате(план)/срок по прайс-листу","Сумма по выставленному счету (первый платеж)","Количество предоплаченных месяцев (первый платеж)","Корректировка РГ","Корректировка РГ по прайс-листу","Примечание","Сумма предоплаты","Планируемое количество предоплаченных месяцев (первый платеж)","Сравнение","Оплаченный объем по продлениям (план)","Индекс"]
["Булташева, Регина","ARENA, спортивный клуб","Оренбург","БЗ_48-48-350000","Арена, спортивный клуб","Общество с ограниченной ответственностью \"Арена\"",24480,27200,"2015-01-01","2015-04-30T23:59:59",4,6120,6800,12240,2,6800,6800,"",10000,1,1,{"$error":"#REF!"},{"$f":"COUNTIF(Таб1[[#Headers],[Куратор]]:Таб1[[#This Row],[Куратор]],Таб1[[#This Row],[Куратор]])","v":1}]
["Булташева, Регина","Авеста, автошкола","Оренбург","БЗ_48-48-347957","Авеста, автошкола","НОУ «Учебный Центр» «АВЕСТА»",12420,13800,"2015-01-01","2015-04-30T23:59:59",4,3105,3450,6210,2,0,0,"Планируется переезд на другой адрес.",0,0,0,0,{"$f":"COUNTIF(Таб1[[#Headers],[Куратор]]:Таб1[[#This Row],[Куратор]],Таб1[[#This Row],[Куратор]])","v":2}]
["Булташева, Регина","Алексис, гостинично-развлекательный комплекс","Оренбург","БЗ_48-48-340814","Алексис, гостиничный комплекс","ИП Сариди Анета Алексеевна",23000,28750,"2014-12-01","2015-04-30T23:59:59",5,4600,5750,23000,5,4600,4600,"",18400,4,-1,4600,{"$f":"COUNTIF(Таб1[[#Headers],[Куратор]]:Таб1[[#This Row],[Куратор]],Таб1[[#This Row],[Куратор]])","v":3}]
["Булташева, Регина","Драфтория, магазин напитков","Оренбург","БЗ_48-48-339002","Драфтория, магазин напитков","Общество с ограниченной ответственностью \"Евродрафт\"",13800,17250,"2014-12-01","2015-04-30T23:59:59",5,2760,3450,13800,5,3650,3650,"",10000,1,1,{"$error":"#REF!"},{"$f":"COUNTIF(Таб1[[#Headers],[Куратор]]:Таб1[[#This Row],[Куратор]],Таб1[[#This Row],[Куратор]])","v":4}]
["Булташева, Регина","Маэстро, кафе","Оренбург","БЗ_48-48-345620","Маэстро, кафе","ИП Крапотина Юлия Павловна",14200,14200,"2015-01-01","2015-04-30T23:59:59",4,3550,3550,3550,1,0,0,"Риск ДЗ. Финансовые затруднения",0,0,0,0,{"$f":"COUNTIF(Таб1[[#Headers],[Куратор]]:Таб1[[#This Row],[Куратор]],Таб1[[#This Row],[Куратор]])","v":5}]
["Булташева, Регина","Флора Стиль, салон цветов","Оренбург","БЗ_48-48-370267","Флора Стиль, салон цветов","ИП Корнилова О.Г.",11700,11700,"2015-03-01","2015-04-30T23:59:59",2,5850,5850,11700,2,5850,5850,"",11700,2,0,5850,{"$f":"COUNTIF(Таб1[[#Headers],[Куратор]]:Таб1[[#This Row],[Куратор]],Таб1[[#This Row],[Куратор]])","v":6}]
["Вавилина, Кира","Pita House, кафе","Оренбург","БЗ_48-48-381887","Pita House, кафе","ООО \"Нафта Ойл\"",10170,11300,"2015-03-01","2015-04-30T23:59:59",2,5085,5650,10170,2,5650,5650,"",11300,2,0,5650,{"$f":"COUNTIF(Таб1[[#Headers],[Куратор]]:Таб1[[#This Row],[Куратор]],Таб1[[#This Row],[Куратор]])","v":1}]
["Вавилина, Кира","Гарант, ООО, юридическая фирма","Оренбург","БЗ_48-48-337568","Гарант, ООО, центр правовой поддержки","ООО «Юридическая фирма «Гарант»",18400,23000,"2014-12-01","2015-04-30T23:59:59",5,3680,4600,18400,5,0,0,"Нерентабельность рекламы. Низкий эффект",0,0,0,0,{"$f":"COUNTIF(Таб1[[#Headers],[Куратор]]:Таб1[[#This Row],[Куратор]],Таб1[[#This Row],[Куратор]])","v":2}]
["Вавилина, Кира","Мир, производственная компания","Оренбург","БЗ_48-48-352191","Мир, производственная компания","ИП Богачева Ольга Васильевна",15000,15000,"2015-01-01","2015-04-30T23:59:59",4,3750,3750,3750,1,3750,3750,"",3750,1,0,3750,{"$f":"COUNTIF(Таб1[[#Headers],[Куратор]]:Таб1[[#This Row],[Куратор]],Таб1[[#This Row],[Куратор]])","v":3}]
["Вашляева, Полина","Фалькон, лазертаг-клуб","Оренбург","БЗ_48-48-352049","Фалькон, лазертаг-клуб","Гнатюк Маским Игоревич",18800,18800,"2015-01-01","2015-04-30T23:59:59",4,4700,4700,4700,1,4700,4700,"",4700,1,0,4700,{"$f":"COUNTIF(Таб1[[#Headers],[Куратор]]:Таб1[[#This Row],[Куратор]],Таб1[[#This Row],[Куратор]])","v":1}]
["Голованова, Мария","Bosal+, магазин автотоваров","Оренбург","БЗ_48-48-245084","Bosal+, магазин автотоваров","Индивидуальный Предприниматель Болдырев Олег Евгеньевич",88560,110700,"2014-05-01","2015-04-30T23:59:59",12,7380,9225,88560,12,4700,4700,"уменьшение в связи с кризисом",18800,4,-8,4700,{"$f":"COUNTIF(Таб1[[#Headers],[Куратор]]:Таб1[[#This Row],[Куратор]],Таб1[[#This Row],[Куратор]])","v":1}]
["Голованова, Мария","Беларусь, ООО, торговый дом","Оренбург","БЗ_48-48-350894","Беларусь, торговый дом","Общество с Ограниченной Ответственностью Торговый Дом \"Беларусь\"",13140,14600,"2015-01-01","2015-04-30T23:59:59",4,3285,3650,6570,2,3285,3285,"2015-04-07",6570,2,0,3285,{"$f":"COUNTIF(Таб1[[#Headers],[Куратор]]:Таб1[[#This Row],[Куратор]],Таб1[[#This Row],[Куратор]])","v":2}]
["Голованова, Мария","Белый сервис, автосервис","Оренбург","БЗ_48-48-392908","Белый сервис, автосервис","ИП Фокина Наталья Васильевна",1250,1250,"2015-04-01","2015-04-30T23:59:59",1,1250,1250,1250,1,1250,1250,"2015-04-07",1250,1,0,1250,{"$f":"COUNTIF(Таб1[[#Headers],[Куратор]]:Таб1[[#This Row],[Куратор]],Таб1[[#This Row],[Куратор]])","v":3}]
["Голованова, Мария","ОВК. Инженерные системы, ООО, климатическая компания","Оренбург","БЗ_48-48-353985","Овк. Инженерные системы, ООО, монтажная компания","ООО «ОВК.Инженерные системы»",19200,19200,"2015-01-01","2015-04-30T23:59:59",4,4800,4800,9600,2,3550,3550,"2015-04-07",3550,1,-1,3550,{"$f":"COUNTIF(Таб1[[#Headers],[Куратор]]:Таб1[[#This Row],[Куратор]],Таб1[[#This Row],[Куратор]])","v":4}]
["Голованова, Мария","Оптика Плюс, сеть салонов оптики","Оренбург","БЗ_48-48-239631","Медицинская Оптика Плюс, сеть салонов оптики","Индивидуальный Предприниматель Сергиенко Валерий Валентинович",50688,57600,"2014-05-01","2015-04-30T23:59:59",12,4224,4800,50688,12,4800,4800,"2015-04-08",19200,4,-8,4800,{"$f":"COUNTIF(Таб1[[#Headers],[Куратор]]:Таб1[[#This Row],[Куратор]],Таб1[[#This Row],[Куратор]])","v":5}]
["Голованова, Мария","Урал-Климат, инжиниринговая компания","Оренбург","БЗ_48-48-302309","Урал-Климат, инжиниринговая компания","Общество с Ограниченной Ответственностью  «Урал-Климат»",45440,56800,"2014-09-01","2015-04-30T23:59:59",8,5680,7100,45440,8,4600,4600,"2015-04-07",18400,4,-4,4600,{"$f":"COUNTIF(Таб1[[#Headers],[Куратор]]:Таб1[[#This Row],[Куратор]],Таб1[[#This Row],[Куратор]])","v":6}]
["Дасаева, Нелли","OrenHotel, квартирное бюро","Оренбург","БЗ_48-48-372926","Orenhotel, квартирное бюро","ИП Попова Галина Николаевна",17600,17600,"2015-03-01","2015-04-30T23:59:59",2,8800,8800,8800,1,8800,8800,"Бартер. Техническое продление.",0,0,0,8000,{"$f":"COUNTIF(Таб1[[#Headers],[Куратор]]:Таб1[[#This Row],[Куратор]],Таб1[[#This Row],[Куратор]])","v":1}]
["Дасаева, Нелли","ГОС, ООО, городская оконная служба","Оренбург","БЗ_48-48-340461","Городская Оконная Служба, торгово-производственная компания, ООО ГОС","Общество с ограниченной ответственностью \"ГОС\"",23000,28750,"2014-12-01","2015-04-30T23:59:59",5,4600,5750,23000,5,0,0,"Риск ДЗ. Финансовые затруднения",0,0,0,0,{"$f":"COUNTIF(Таб1[[#Headers],[Куратор]]:Таб1[[#This Row],[Куратор]],Таб1[[#This Row],[Куратор]])","v":2}]
["Любимова, Олеся","Интерьерная Лавка, салон мебели и предметов интерьера из Франции","Оренбург","БЗ_48-48-360839","Интерьерная Лавка","ООО \"Факториал\"",12699,15300,"2015-02-01","2015-04-30T23:59:59",3,4233,5100,12699,3,4233,4233,"",12699,3,0,4233,{"$f":"COUNTIF(Таб1[[#Headers],[Куратор]]:Таб1[[#This Row],[Куратор]],Таб1[[#This Row],[Куратор]])","v":1}]
["Любимова, Олеся","Интерьерная Лавка, салон мебели и предметов интерьера из Франции","Оренбург","БЗ_48-48-392402","Интерьерная Лавка","ООО \"Факториал\"",2000,2500,"2015-04-01","2015-04-30T23:59:59",1,2000,2500,2000,1,0,0,"отказ от пакета",0,0,0,0,{"$f":"COUNTIF(Таб1[[#Headers],[Куратор]]:Таб1[[#This Row],[Куратор]],Таб1[[#This Row],[Куратор]])","v":2}]
["Любимова, Олеся","Оконные системы, ООО, торгово-производственная компания","Оренбург","БЗ_48-48-317556","Оконные системы, ООО, торгово-производственная компания","ООО\"Оконные системы\"",27600,27600,"2014-11-01","2015-04-30T23:59:59",6,4600,4600,27600,6,4025,4025,"",24150,6,0,4025,{"$f":"COUNTIF(Таб1[[#Headers],[Куратор]]:Таб1[[#This Row],[Куратор]],Таб1[[#This Row],[Куратор]])","v":3}]
["Любимова, Олеся","ЭТАЛОН, сеть шиномонтажных мастерских","Оренбург","БЗ_48-48-342598","Эталон, сеть шиномонтажных мастерских","ИП  Маркушина Татьяна Георгиевна",13800,17250,"2014-12-01","2015-04-30T23:59:59",5,2760,3450,13800,5,2760,2760,"",13800,5,0,2760,{"$f":"COUNTIF(Таб1[[#Headers],[Куратор]]:Таб1[[#This Row],[Куратор]],Таб1[[#This Row],[Куратор]])","v":4}]
["Мартьянова, Ирина","7 Небо, ресторанный комплекс","Оренбург","БЗ_48-48-350450","7 Небо, служба доставки готовых блюд","Индивидуальный предприниматель Белов Александр Анатольевич",87700,87700,"2015-01-01","2015-04-30T23:59:59",4,21925,21925,87700,4,0,"","",0,0,0,0,{"$f":"COUNTIF(Таб1[[#Headers],[Куратор]]:Таб1[[#This Row],[Куратор]],Таб1[[#This Row],[Куратор]])","v":1}]
["Мартьянова, Ирина","REDMOND, кулинарная школа","Оренбург","БЗ_48-48-397507","Редмонд","Общество с ограниченной ответственностью \"Медиа-Пресс 56\"",4850,4850,"2015-04-01","2015-04-30T23:59:59",1,4850,4850,4850,1,0,"","",0,0,0,0,{"$f":"COUNTIF(Таб1[[#Headers],[Куратор]]:Таб1[[#This Row],[Куратор]],Таб1[[#This Row],[Куратор]])","v":2}]
["Мартьянова, Ирина","ViewTek, рекламная компания, ООО Марин","Оренбург","БЗ_48-48-356815","ViewTek, рекламная компания","ООО \"Марин\"",54200,54200,"2015-01-01","2015-04-30T23:59:59",4,13550,13550,54200,4,0,"","",0,0,0,0,{"$f":"COUNTIF(Таб1[[#Headers],[Куратор]]:Таб1[[#This Row],[Куратор]],Таб1[[#This Row],[Куратор]])","v":3}]
["Мартьянова, Ирина","Андрей Лукин creative leader TEAM, многопрофильная компания","Оренбург","БЗ_48-48-343116","Андрей Лукин creative leader TEAM, многопрофильная компания","ООО \"Улыбаться надо\"",111375,111375,"2014-12-01","2015-04-30T23:59:59",5,22275,22275,111375,5,0,"","",0,0,0,0,{"$f":"COUNTIF(Таб1[[#Headers],[Куратор]]:Таб1[[#This Row],[Куратор]],Таб1[[#This Row],[Куратор]])","v":4}]
["Мартьянова, Ирина","ЗАТУМАНИЯ, загородный клуб отдыха","Оренбург","БЗ_48-48-354149","ЗАТУМАНИЯ, загородный клуб отдыха","ООО \"ЗАТУМАНИЯ\"",43400,43400,"2015-01-01","2015-04-30T23:59:59",4,10850,10850,43400,4,0,"","",0,0,0,0,{"$f":"COUNTIF(Таб1[[#Headers],[Куратор]]:Таб1[[#This Row],[Куратор]],Таб1[[#This Row],[Куратор]])","v":5}]
["Мартьянова, Ирина","ЗАТУМАНИЯ, загородный клуб отдыха","Оренбург","БЗ_48-48-355712","ЗАТУМАНИЯ, загородный клуб отдыха","ООО \"ЗАТУМАНИЯ\"",51800,51800,"2015-01-01","2015-04-30T23:59:59",4,12950,12950,51800,4,0,"","",0,0,0,0,{"$f":"COUNTIF(Таб1[[#Headers],[Куратор]]:Таб1[[#This Row],[Куратор]],Таб1[[#This Row],[Куратор]])","v":6}]
["Мартьянова, Ирина","Любимый город, рекламная компания","Оренбург","БЗ_48-48-345222","Любимый город, рекламная компания","ООО \"Рекламная компания \"Любимый город\"",48300,48300,"2015-01-01","2015-04-30T23:59:59",4,12075,12075,48300,4,0,"","",0,0,0,0,{"$f":"COUNTIF(Таб1[[#Headers],[Куратор]]:Таб1[[#This Row],[Куратор]],Таб1[[#This Row],[Куратор]])","v":7}]
["Мартьянова, Ирина","Окна СОК Оренбург, торгово-ремонтная компания","Оренбург","БЗ_48-48-356010","Окна СОК Оренбург, торгово-монтажная компания","Общество с ограниченной ответственностью \"Кубик Рубик\"",40300,40300,"2015-01-01","2015-04-30T23:59:59",4,10075,10075,40300,4,0,"","",0,0,0,0,{"$f":"COUNTIF(Таб1[[#Headers],[Куратор]]:Таб1[[#This Row],[Куратор]],Таб1[[#This Row],[Куратор]])","v":8}]
["Мартьянова, Ирина","Оперативная полиграфия, многопрофильная компания","Оренбург","БЗ_48-48-356011","Оперативная полиграфия, торговая компания","ООО \"Оперативная полиграфия\"",24400,24400,"2015-01-01","2015-04-30T23:59:59",4,6100,6100,24400,4,0,"","",0,0,0,0,{"$f":"COUNTIF(Таб1[[#Headers],[Куратор]]:Таб1[[#This Row],[Куратор]],Таб1[[#This Row],[Куратор]])","v":9}]
["Мартьянова, Ирина","Пятый сезон, мужской клуб","Оренбург","БЗ_48-48-397666","Пятый сезон, мужской клуб","ООО \"Апрель\"",20250,20250,"2015-04-01","2015-04-30T23:59:59",1,20250,20250,20250,1,0,"","",0,0,0,0,{"$f":"COUNTIF(Таб1[[#Headers],[Куратор]]:Таб1[[#This Row],[Куратор]],Таб1[[#This Row],[Куратор]])","v":10}]
["Мартьянова, Ирина","Пятый сезон, мужской клуб","Оренбург","БЗ_48-48-391945-Online","Пятый сезон, мужской клуб","ООО \"Апрель\"",6525,6525,"2015-04-01","2015-04-30T23:59:59",1,6525,6525,6525,1,0,"","",0,0,0,0,{"$f":"COUNTIF(Таб1[[#Headers],[Куратор]]:Таб1[[#This Row],[Куратор]],Таб1[[#This Row],[Куратор]])","v":11}]
["Мартьянова, Ирина","Тонус-Клуб, женский спортивно-оздоровительный центр","Оренбург","БЗ_48-48-397679","Тонус-клуб, оздоровительный центр","ИП Забудская Н.А.",14150,14150,"2015-04-01","2015-04-30T23:59:59",1,14150,14150,14150,1,0,"","",0,0,0,0,{"$f":"COUNTIF(Таб1[[#Headers],[Куратор]]:Таб1[[#This Row],[Куратор]],Таб1[[#This Row],[Куратор]])","v":12}]
["Мартьянова, Ирина","УралЭкспо, компания по организации выставочных и праздничных мероприятий","Оренбург","БЗ_48-48-397671","УралЭкспо, компания по организации выставочных и праздничных мероприятий","ОАО Постоянно действующая выставка Оренбургской области \"УралЭкспо\"",9000,9000,"2015-04-01","2015-04-30T23:59:59",1,9000,9000,9000,1,0,"","",0,0,0,0,{"$f":"COUNTIF(Таб1[[#Headers],[Куратор]]:Таб1[[#This Row],[Куратор]],Таб1[[#This Row],[Куратор]])","v":13}]
["Молдырева, Любовь","Валентина, развлекательный центр","Оренбург","БЗ_48-48-349712","Валентина, сауна","ОБЩЕСТВО С ОГРАНИЧЕННОЙ ОТВЕТСТВЕННОСТЬЮ «Валентина – 2006»",13140,14600,"2015-01-01","2015-04-30T23:59:59",4,3285,3650,6570,2,3285,3285,"отказ от пакета",6570,2,0,3285,{"$f":"COUNTIF(Таб1[[#Headers],[Куратор]]:Таб1[[#This Row],[Куратор]],Таб1[[#This Row],[Куратор]])","v":1}]
["Уварова, Светлана","Надежда, автоцентр, официальный дилер УАЗ, BAW-RUS","Оренбург","БЗ_48-48-337183","Надежда, сеть автомагазинов","Общество с ограниченной ответственностью  \"Надежда\"",28800,36000,"2014-12-01","2015-04-30T23:59:59",5,5760,7200,28800,5,5760,5760,"2015-04-14",28800,5,0,5760,{"$f":"COUNTIF(Таб1[[#Headers],[Куратор]]:Таб1[[#This Row],[Куратор]],Таб1[[#This Row],[Куратор]])","v":1}]

{"sheet":"Результат","index":1,"n_rows":17,"n_cols":9,"rows_kept":17,"cut":false,"hidden":false,"merged":[]}
[]
[]
["Куратор","Фирма"]
["Булташева, Регина","Вавилина, Кира","Вашляева, Полина","Голованова, Мария","Дасаева, Нелли","Любимова, Олеся","Мартьянова, Ирина","Молдырева, Любовь","Уварова, Светлана"]
["ARENA, спортивный клуб","Pita House, кафе","Фалькон, лазертаг-клуб","Bosal+, магазин автотоваров","OrenHotel, квартирное бюро","Интерьерная Лавка, салон мебели и предметов интерьера из Франции","7 Небо, ресторанный комплекс","Валентина, развлекательный центр","Надежда, автоцентр, официальный дилер УАЗ, BAW-RUS"]
["Авеста, автошкола","Гарант, ООО, юридическая фирма",null,"Беларусь, ООО, торговый дом","ГОС, ООО, городская оконная служба","Интерьерная Лавка, салон мебели и предметов интерьера из Франции","REDMOND, кулинарная школа"]
["Алексис, гостинично-развлекательный комплекс","Мир, производственная компания",null,"Белый сервис, автосервис",null,"Оконные системы, ООО, торгово-производственная компания","ViewTek, рекламная компания, ООО Марин"]
["Драфтория, магазин напитков",null,null,"ОВК. Инженерные системы, ООО, климатическая компания",null,"ЭТАЛОН, сеть шиномонтажных мастерских","Андрей Лукин creative leader TEAM, многопрофильная компания"]
["Маэстро, кафе",null,null,"Оптика Плюс, сеть салонов оптики",null,null,"ЗАТУМАНИЯ, загородный клуб отдыха"]
["Флора Стиль, салон цветов",null,null,"Урал-Климат, инжиниринговая компания",null,null,"ЗАТУМАНИЯ, загородный клуб отдыха"]
[null,null,null,null,null,null,"Любимый город, рекламная компания"]
[null,null,null,null,null,null,"Окна СОК Оренбург, торгово-ремонтная компания"]
[null,null,null,null,null,null,"Оперативная полиграфия, многопрофильная компания"]
[null,null,null,null,null,null,"Пятый сезон, мужской клуб"]
[null,null,null,null,null,null,"Пятый сезон, мужской клуб"]
[null,null,null,null,null,null,"Тонус-Клуб, женский спортивно-оздоровительный центр"]
[null,null,null,null,null,null,"УралЭкспо, компания по организации выставочных и праздничных мероприятий"]